[Event "13th Chennai Open 2022"]
[Site "Chennai"]
[Date "2022.06.22"]
[Round "6.5"]
[White "Abdyjapar, Asyl"]
[Black "Nguyen, Duc Hoa"]
[Result "1/2-1/2"]
[ECO "A13"]
[WhiteElo "2346"]
[BlackElo "2398"]
[Annotator "TA"]
[PlyCount "112"]
[EventDate "2022.06.19"]
[EventType "swiss"]
[EventCountry "IND"]
[SourceTitle "playchess.com"]
[Source "ChessBase"]
[SourceQuality "1"]
[TimeControl "5400+30"]

{[%evp 14,112,17,17,39,12,4,-30,-27,-9,0,-16,-27,-55,-55,-67,-60,-65,-57,-78,-69,-74,-78,-85,-69,-94,-94,-107,-40,-33,-30,-14,-13,-10,-28,-128,-123,-129,-117,-136,-131,-140,-131,-141,-152,-131,-32,-31,-40,-126,-112,-100,-95,-114,-22,-12,0,0,0,0,0,0,0,0,0,0,0,0,0,0,0,0,0,0,0,0,8,8,8,8,8,8,8,8,47,8,8,8,8,8,8,8,8,8,8,8,8,8,8,8,8]} 1. c4 {[%emt 0:00:14]} Nf6 {[%emt 0:04:44]} 2. g3 {[%emt 0:00:12]} e6 {[%emt 0:01:50]} 3. Bg2 {[%emt 0:00:09]} d5 {[%emt 0:00:08]} 4. Nf3 {[%emt 0:00:04]} d4 {[%emt 0:00:56]} 5. O-O {[%emt 0:00:30]} c5 {[%emt 0:00:09]} 6. e3 {[%emt 0:02:25]} Nc6 {[%emt 0:00:14]} 7. exd4 {[%emt 0:00:22]} cxd4 {[%emt 0:00:09]} 8. d3 {[%emt 0:00:25]} Bd6 {[%emt 0:01:35] A13: English Opening: 1...e6.} 9. a3 {[%emt 0:05:51]} a5 {[%emt 0:00:27]} 10. Qe2 {[%emt 0:01:14]} h6 {[%emt 0:05:08] Black has an edge.} 11. Nbd2 {[%emt 0:00:20]} O-O {[%emt 0:00:12]} 12. Rb1 {[%emt 0:00:12] [#]} Re8 $146 {[%emt 0:03:53]} ({Predecessor:} 12... e5 13. Ne1 Bf5 14. Nc2 a4 15. b4 axb3 16. Rxb3 Qc7 17. Ne4 Nxe4 18. Bxe4 Bxe4 19. Qxe4 {0-1 (38) Kreisl,R (2408)-Volke,K (2459) Rhodes 2013}) 13. Ne1 {[%emt 0:00:13]} e5 {[%emt 0:00:53]} 14. Nc2 {[%emt 0:00:29]} Bg4 {[%emt 0:05:02][%cal Bc8g4,Bg4h5,Bh5g6][%mdl 32]} 15. f3 {[%emt 0:03:10]} Bh5 {[%emt 0:02:11][%cal Oe5e4]} 16. g4 {[%emt 0:03:20]} Bg6 {[%emt 0:00:26]} 17. Ne4 {[%emt 0:00:17]} Be7 {[%emt 0:01:43]} 18. Bd2 {[%emt 0:07:37]} Qd7 {[%emt 0:06:27]} 19. h3 {[%emt 0:02:23]} Nd8 {[%emt 0:05:46]} 20. Nf2 {[%emt 0:06:59]} Nh7 {[%emt 0:01:53]} (20... Bd6 $17) 21. Rfe1 $15 {[%emt 0:03:51]} (21. Qxe5 $2 Bg5 22. Qxd4 Qxd4 23. Nxd4 Bxd2 $19) 21... Nc6 {[%emt 0:07:38]} (21... Ne6 $5 {[%cal Re7h4]}) 22. b4 $1 {[%emt 0:04:43]} axb4 {[%emt 0:01:41]} 23. axb4 {[%emt 0:02:15]} Ra2 {[%emt 0:15:18]} 24. b5 {[%emt 0:02:59]} (24. Qd1 $11 {remains equal.}) 24... Rxc2 $17 {[%emt 0:02:23]} 25. bxc6 {[%emt 0:00:05]} bxc6 {[%emt 0:00:12] [#] And now ...Bg5 would win.} ({Don't do} 25... Qxc6 26. Qd1 Rxd2 27. Qxd2 $16) 26. f4 {[%emt 0:04:34] Against Bg5} exf4 {[%emt 0:03:29]} 27. Qd1 {[%emt 0:04:05]} Ra2 {[%emt 0:01:02] White must now prevent ...Bh4.} 28. Bxf4 {[%emt 0:00:09]} Rea8 {[%emt 0:09:14]} 29. Re2 {[%emt 0:00:46]} Bd6 {[%emt 0:02:44]} (29... Bh4 $17 {Threatens to win with ...Ng5.} 30. Ne4 Rxe2 31. Qxe2 Qe7) 30. Rxa2 $1 $15 {[%emt 0:01:41]} Rxa2 {[%emt 0:00:06]} 31. Qf3 {[%emt 0:01:05]} (31. Bxd6 $1 $15 Qxd6 32. Qb3) 31... Ng5 {[%emt 0:05:24]} 32. Qg3 {[%emt 0:02:35]} Bxf4 {[%emt 0:00:38]} 33. Qxf4 {[%emt 0:00:07]} Ne6 {[%emt 0:02:36]} (33... Qe7 $17 {aiming for ...Qe3.} 34. h4 (34. Qb8+ $2 Kh7 $19) 34... Qe3 35. Qxe3 dxe3) 34. Qb8+ $11 {[%emt 0:02:57]} Kh7 {[%emt 0:00:37] ...Qe7 is the strong threat.} 35. Rb7 {[%emt 0:00:40]} Qd8 {[%emt 0:02:06]} 36. Qxd8 {[%emt 0:00:08]} Nxd8 {[%emt 0:00:02]} 37. Rd7 {[%emt 0:00:29][%csl LRd4,LRd8]} Ne6 {[%emt 0:00:21]} 38. Bxc6 {[%emt 0:01:35]} Nf4 {[%emt 0:00:19]} 39. Bf3 {[%emt 0:00:37]} Ra1+ {[%emt 0:07:15]} 40. Kh2 {[%emt 0:00:30]} Ra3 {[%emt 0:00:17]} 41. Rxd4 {[%emt 0:01:41]} Nxd3 {[%emt 0:00:09]} 42. Nxd3 {[%emt 0:00:40]} Rxd3 {[%emt 0:00:06]} 43. Rxd3 {[%emt 0:00:42]} Bxd3 {[%emt 0:00:05][%mdl 4096] Endgame KB-KB} 44. c5 {[%emt 0:00:58][%cal Bc4c5,Bc5c6,Bc6c7][%mdl 32]} Ba6 {[%emt 0:01:03]} 45. Ba8 {[%emt 0:00:28]} g6 {[%emt 0:01:44]} 46. c6 {[%emt 0:00:17]} f5 {[%emt 0:01:02]} 47. gxf5 {[%emt 0:03:07]} ({Not} 47. Bb7 Bb5 48. c7 Bd7 $18) 47... gxf5 {[%emt 0:00:06]} 48. Kg3 {[%emt 0:00:07]} Kg6 {[%emt 0:00:30]} 49. Kf4 {[%emt 0:00:12] Hoping for Ke5.} Kf6 {[%emt 0:00:09] The position is equal.} 50. Bb7 {[%emt 0:00:25]} Bb5 {[%emt 0:00:13]} 51. c7 {[%emt 0:00:12]} Bd7 {[%emt 0:00:04]} 52. h4 {[%emt 0:00:31]} Be6 {[%emt 0:00:27]} 53. h5 {[%emt 0:01:25]} Bd7 {[%emt 0:00:09]} 54. Ba6 {[%emt 0:00:16]} Be6 {[%emt 0:00:11] [#]} 55. Bc4 $1 {[%emt 0:00:25] Bxe6 would kill now.} Bc8 {[%emt 0:00:09]} 56. Bd5 {[%emt 0:00:04]} Bd7 {[%emt 0:00:16] Weighted Error Value: White=0.12 (very precise) /Black=0.12 (very precise)} 1/2-1/2

[Event "13th Chennai Open 2022"]
[Site "Chennai"]
[Date "2022.06.22"]
[Round "6.6"]
[White "Aronyak Ghosh"]
[Black "Murali Krishnan B T"]
[Result "1-0"]
[ECO "D00"]
[WhiteElo "2494"]
[BlackElo "2208"]
[Annotator "TA"]
[PlyCount "29"]
[EventDate "2022.06.19"]
[EventType "swiss"]
[EventCountry "IND"]
[SourceTitle "playchess.com"]
[Source "ChessBase"]
[SourceQuality "1"]
[TimeControl "5400+30"]

{[%evp 9,29,33,42,26,31,26,35,27,20,17,16,27,16,16,24,14,29,7,17,7,14,19]} 1. d4 {[%emt 0:02:29]} d5 {[%emt 0:00:43]} 2. Bf4 {[%emt 0:00:19]} c6 {[%emt 0:02:16]} 3. e3 {[%emt 0:00:22]} Qb6 {[%emt 0:01:18]} 4. Qc1 {[%emt 0:00:45]} Bf5 {[%emt 0:01:58]} 5. c4 {[%emt 0:00:42]} Nf6 {[%emt 0:11:48]} 6. Nc3 {[%emt 0:00:20] D00: 1 d4 d5: Unusual lines.} Nbd7 {[%emt 0:01:02]} 7. Nf3 {[%emt 0:02:27]} e6 {[%emt 0:02:06]} 8. c5 {[%emt 0:05:06] White is slightly better.} Qd8 {[%emt 0:01:55]} 9. h3 {[%emt 0:00:23]} Ne4 {[%emt 0:03:17]} 10. b4 {[%emt 0:01:44]} g5 {[%emt 0:05:43]} 11. Bh2 {[%emt 0:06:50]} Bg7 {[%emt 0:00:50]} 12. Nxe4 {[%emt 0:01:28]} Bxe4 {[%emt 0:00:32] [#]} 13. Nd2 $146 {[%emt 0:02:12]} ({Predecessor:} 13. Bd6 Bf8 14. Bg3 Bg7 15. Qc3 O-O 16. Be2 e5 17. O-O Bxf3 18. Bxf3 f5 19. Bh2 exd4 20. exd4 {½-½ (41) Pappier,C (2495)-Poludnyakov,V (2388) ICCF email 2012}) 13... Bg6 {[%emt 0:01:10]} 14. Bd6 {[%emt 0:07:33]} Bf8 {[%emt 0:12:17]} 15. Bg3 {[%emt 0:00:30][%mdl 32768] Weighted Error Value: White=0.06 (flawless) /Black=0.00 (flawless) . Loss on time!?} 1-0

[Event "13th Chennai Open 2022"]
[Site "Chennai"]
[Date "2022.06.22"]
[Round "6.8"]
[White "Ajay Karthikeyan"]
[Black "Tiwari, Arjun"]
[Result "1-0"]
[ECO "D02"]
[WhiteElo "2436"]
[BlackElo "2163"]
[Annotator "TA"]
[PlyCount "121"]
[EventDate "2022.06.19"]
[EventType "swiss"]
[EventCountry "IND"]
[SourceTitle "playchess.com"]
[Source "ChessBase"]
[SourceQuality "1"]
[TimeControl "5400+30"]

{[%evp 9,121,7,22,14,29,33,40,22,35,33,39,0,0,0,0,-16,32,35,28,21,45,0,28,14,11,8,26,36,36,45,78,52,66,41,41,29,26,20,11,16,24,0,49,0,0,0,0,0,0,-3,6,4,8,2,82,104,109,82,754,0,0,0,10,-91,0,-43,0,0,237,0,0,0,0,0,0,0,36,0,5,7,28,22,90,10,27,0,19,29,47,55,324,9,16,19,41,36,933,933,893,892,798,162,29973,29973,29968,29969,29981,29982,29982,29983,29992,29993,29996,29997]} 1. d4 {[%emt 0:00:07]} Nf6 {[%emt 0:01:44]} 2. Nf3 {[%emt 0:00:34]} g6 {[%emt 0:00:28]} 3. Nbd2 {[%emt 0:00:21]} d5 {[%emt 0:00:27]} 4. b4 {[%emt 0:00:09]} Bg7 {[%emt 0:00:08]} 5. e3 {[%emt 0:00:21]} O-O {[%emt 0:05:00]} 6. Bb2 {[%emt 0:01:34] D02: 1 d4 d5 2 Nf3 sidelines, including 2...Nf6 3 g3 and 2...Nf6 3 Bf4.} Bf5 {[%emt 0:02:37]} 7. c4 {[%emt 0:00:56]} Ne4 {[%emt 0:12:48] [#]} 8. cxd5 $146 {[%emt 0:11:26] White is slightly better.} ({Predecessor:} 8. Qb3 a5 9. a3 axb4 10. axb4 Rxa1+ 11. Bxa1 dxc4 12. Bxc4 Nd6 13. Be2 Nd7 14. O-O c6 15. d5 Bxa1 16. Rxa1 cxd5 17. Qxd5 Qb6 18. Qd4 Rc8 19. h3 Be6 {0-1 (19) Cyborowski,L (2548)-Sadzikowski,D (2448) Wroclaw 2013}) 8... Qxd5 {[%emt 0:01:00]} 9. Bc4 {[%emt 0:01:02]} Qd6 {[%emt 0:00:55]} 10. Qb3 {[%emt 0:01:50]} Nxd2 {[%emt 0:03:59]} 11. Nxd2 {[%emt 0:01:13]} Nc6 {[%emt 0:01:34]} 12. a3 {[%emt 0:01:08]} e5 {[%emt 0:06:02]} (12... a5 $1 $11) 13. d5 $14 {[%emt 0:00:21]} Ne7 {[%emt 0:00:24]} 14. e4 {[%emt 0:00:44]} Bd7 {[%emt 0:00:45]} 15. Be2 {[%emt 0:01:42]} b5 {[%emt 0:00:50] Inhibits Nc4.} (15... c6 $5 {[%cal Rc6d5]}) 16. Rd1 {[%emt 0:02:25]} c6 {[%emt 0:02:47]} 17. dxc6 {[%emt 0:01:43]} Qxc6 {[%emt 0:04:31]} 18. Qg3 {[%emt 0:13:03]} Rfe8 {[%emt 0:02:49]} 19. Nb3 {[%emt 0:05:50]} (19. Bxe5 $2 Nf5 $1 {[%mdl 512]} 20. Qd3 Rxe5 $19) 19... Qc7 {[%emt 0:23:38]} 20. Nc5 {[%emt 0:01:01]} Bc6 {[%emt 0:00:01]} 21. O-O {[%emt 0:05:18] 0x0.00166d62a0c0dp-1022s more active pieces. The black rooks are badly placed.} (21. h4 $5 {[%cal Rh4h5]}) 21... a5 {[%emt 0:00:22]} 22. Rd2 {[%emt 0:02:38]} Nc8 {[%emt 0:03:14]} 23. Rfd1 {[%emt 0:06:54]} axb4 {[%emt 0:02:47]} 24. axb4 {[%emt 0:01:12]} Nb6 {[%emt 0:00:47]} 25. h4 {[%emt 0:02:32]} Na4 {[%emt 0:01:57]} (25... Nc4 $11) 26. Qe3 {[%emt 0:05:57]} (26. Nxa4 $1 $14 {deserves consideration.} bxa4 27. b5 Bxe4 28. Qe3) 26... Nxc5 {[%emt 0:02:04]} 27. Qxc5 {[%emt 0:00:02]} Bf8 {[%emt 0:00:20]} 28. Qc3 {[%emt 0:03:45]} Qb7 {[%emt 0:00:07]} 29. Qb3 {[%emt 0:00:21]} Ra7 {[%emt 0:03:53]} 30. h5 {[%emt 0:02:07]} Ra4 {[%emt 0:05:31]} 31. Bc3 {[%emt 0:02:48]} Be7 {[%emt 0:01:37]} (31... Qc7 $11) 32. hxg6 {[%emt 0:00:29]} (32. Bxe5 $6 Rxb4 33. Qh3 Rxe4 34. hxg6 fxg6 $11) 32... hxg6 {[%emt 0:00:01]} 33. Bxe5 {[%emt 0:00:53]} Bg5 $2 {[%emt 0:04:01][%mdl 8192] [#]} (33... Rxb4 $16 34. Qh3 Bh4) 34. f4 $2 {[%emt 0:04:14]} (34. Rd5 Bxd5 35. Rxd5 Qe7 $14) ({White must play} 34. Bb2 $1 $18 Bf4 (34... Bxd2 35. Rxd2) 35. Rd6 $1 {[%mdl 512]} Bxd6 36. Rxd6) 34... Rxe5 $1 $11 {[%emt 0:00:23][%mdl 64] Pin} 35. fxg5 {[%emt 0:01:14]} Qb6+ {[%emt 0:00:52]} (35... Rxg5 $2 36. Rd8+ Kg7 37. Qh3 $18) 36. Kh1 {[%emt 0:00:47]} (36. Kf1 $11 {remains equal.} Qb7 37. Bf3) 36... Ra8 {[%emt 0:00:08]} (36... Rxe4 $17 {( -> ...Rh4+)} 37. Bg4 (37. Rd8+ Be8 $17) 37... Ra8) 37. Qg3 {[%emt 0:00:43]} Rae8 {[%emt 0:02:12]} 38. Rd6 {[%emt 0:00:22] Threatens to win with Rc1.} Kg7 $2 {[%emt 0:00:38]} (38... Rxe4 $11 39. Bf3 Rc4) 39. R1d4 $2 {[%emt 0:01:24]} (39. Bg4 $1 $18) 39... Rh8+ {[%emt 0:01:58]} 40. Kg1 {[%emt 0:00:23]} Rxe4 {[%emt 0:01:05]} 41. Qf2 {[%emt 0:00:47] The board is on fire.} Rxd4 {[%emt 0:01:33]} 42. Rxd4 {[%emt 0:00:57]} Be8 {[%emt 0:01:07]} (42... Qc7 $2 43. Qf6+ Kg8 44. Rd8+ Qxd8 45. Qxd8+ $18) 43. Bg4 {[%emt 0:02:45]} Rh4 {[%emt 0:01:10][%cal Oe8d7]} 44. g3 {[%emt 0:00:12]} (44. Qxh4 $2 {is the wrong capture.} Qxd4+ 45. Kh2 Qxb4 $19) 44... Rh7 {[%emt 0:00:14]} 45. Bf3 {[%emt 0:02:26]} Kf8 {[%emt 0:00:28]} (45... Qc7 $11 {keeps the balance.}) 46. Qe3 {[%emt 0:04:09]} (46. Rh4 $16 Qxf2+ 47. Kxf2) 46... Qa7 {[%emt 0:00:39]} 47. Re4 {[%emt 0:04:02]} (47. Qf4 {is interesting.} f5 48. Kg2 Qc7 49. g4) 47... Qxe3+ {[%emt 0:01:32]} 48. Rxe3 {[%emt 0:00:01][%mdl 4096] Endgame KRB-KRB} f6 {[%emt 0:00:45]} 49. gxf6 {[%emt 0:00:19] Strongly threatening Rd3.} Rc7 $2 {[%emt 0:00:07][%mdl 8192] [#]} (49... Ra7 $1 $14) 50. Bd5 $2 {[%emt 0:01:56]} (50. Rd3 $1 $18 {[%cal Rd3d8]}) 50... Bf7 {[%emt 0:00:43]} 51. Re5 {[%emt 0:02:01]} Rc3 {[%emt 0:00:41] Against Bf3} 52. Kf2 {[%emt 0:00:24] g4 is the strong threat.} Be8 $2 {[%emt 0:00:24][%mdl 8192]} (52... Bxd5 $14 53. Rxd5 Kf7) 53. Re7 $18 {[%emt 0:03:10] Intending Rh7 and mate.} Rd3 {[%emt 0:00:11] [#]} 54. Be6 $1 {[%emt 0:00:32] White threatens Rh7 and mate.} Rd6 {[%emt 0:00:39]} 55. Kf3 $2 {[%emt 0:01:41]} (55. Ke3 {Kf4 would kill now.} Bc6 56. Kf4 Rxe6 57. Rxe6) 55... Rd1 $2 {[%emt 0:00:19]} (55... Bd7 $18) 56. Kf4 {[%emt 0:00:54] White mates.} Re1 {[%emt 0:00:46]} 57. g4 {[%emt 0:00:24][%cal Bg3g4,Bg4g5][%mdl 32]} Rf1+ {[%emt 0:00:46]} 58. Ke5 {[%emt 0:00:37]} Re1+ {[%emt 0:00:03]} 59. Kd6 {[%emt 0:00:18]} Rh1 {[%emt 0:00:34]} 60. Rg7 {[%emt 0:00:25][%csl Ge6][%cal Rg7g8]} Rh8 {[%emt 0:00:30]} 61. g5 {[%emt 0:00:13] Weighted Error Value: White=0.59/Black=0.46} 1-0

[Event "13th Chennai Open 2022"]
[Site "Chennai"]
[Date "2022.06.22"]
[Round "6.9"]
[White "Srihari L R"]
[Black "Manigandan, S S"]
[Result "1-0"]
[ECO "A15"]
[WhiteElo "2404"]
[BlackElo "2122"]
[Annotator "TA"]
[PlyCount "81"]
[EventDate "2022.06.19"]
[EventType "swiss"]
[EventCountry "IND"]
[SourceTitle "playchess.com"]
[Source "ChessBase"]
[SourceQuality "1"]
[TimeControl "5400+30"]

{[%evp 11,81,1,15,10,10,3,33,20,28,17,12,18,33,3,12,0,0,-4,3,-9,-20,-7,4,10,25,15,18,12,33,27,28,31,35,42,61,90,87,50,120,115,200,194,202,208,197,207,201,204,217,214,260,239,296,308,481,471,531,516,579,478,597,599,534,497,621,579,542,452,443,468,747,724]} 1. Nf3 {[%emt 0:00:19]} Nf6 {[%emt 0:00:11]} 2. c4 {[%emt 0:00:07]} g6 {[%emt 0:01:32]} 3. b4 {[%emt 0:02:30]} Bg7 {[%emt 0:03:17]} 4. Bb2 {[%emt 0:00:11]} O-O {[%emt 0:06:12]} 5. e3 {[%emt 0:00:14]} b6 {[%emt 0:00:40]} 6. Be2 {[%emt 0:02:16]} Bb7 {[%emt 0:04:44]} 7. O-O {[%emt 0:07:15] A15: English Opening: 1...Nf6.} c5 {[%emt 0:03:30]} 8. a3 {[%emt 0:03:23] is the legacy move (8.b5).} d5 {[%emt 0:01:23]} 9. cxd5 {[%emt 0:02:52] [#] White is slightly better.} Qxd5 $146 {[%emt 0:02:19]} ({Predecessor:} 9... Nbd7 10. bxc5 Nxc5 11. d4 Nce4 12. Ne5 Nxd5 13. f3 Nxe3 14. Qc1 Nxf1 15. fxe4 Nxh2 16. Kxh2 Bxe4 {½-½ (34) Pal,P (2166)-Bubits,B (1971) Zalakaros 2008}) 10. Nc3 {[%emt 0:00:47]} Qf5 {[%emt 0:03:28]} 11. bxc5 {[%emt 0:06:03]} bxc5 {[%emt 0:01:45]} 12. Qb3 {[%emt 0:03:44]} Bc6 {[%emt 0:02:01]} 13. Rac1 {[%emt 0:15:37]} Nbd7 14. Qc2 Rab8 15. Ba1 {[%emt 0:11:36]} Qxc2 {[%emt 0:20:00]} 16. Rxc2 {[%emt 0:00:08]} e5 {[%emt 0:00:05]} 17. d3 {[%emt 0:04:34]} Rb3 {[%emt 0:25:03]} 18. Ra2 {[%emt 0:04:38]} Nd5 {[%emt 0:18:47]} 19. Ne4 {[%emt 0:02:14]} Rbb8 {[%emt 0:03:10]} 20. Rc1 {[%emt 0:01:15]} Ba4 {[%emt 0:01:40]} 21. Nfd2 {[%emt 0:02:10]} Rfc8 {[%emt 0:00:31]} 22. Bf3 {[%emt 0:00:48] Hoping for Nd6.} N5f6 {[%emt 0:00:39]} 23. Nd6 {[%emt 0:01:20]} Rc7 {[%emt 0:00:29]} 24. Bc3 {[%emt 0:00:26]} Bf8 {[%emt 0:00:17] White leaves nothing to chance now.} (24... Ne8 $14 25. N6c4 Bc6) 25. N6c4 $16 {[%emt 0:00:12] White is more active.} Bb3 {[%emt 0:00:45]} (25... Bg7 $16 {was necessary.} 26. h4 (26. Nxe5 Ne4 $16) 26... h5) 26. Rb2 $18 {[%emt 0:00:38]} Bxc4 {[%emt 0:00:20]} 27. Rxb8 {[%emt 0:00:06]} ({Don't play} 27. dxc4 $6 Rxb2 28. Bxb2 Ne8 $14) 27... Nxb8 {[%emt 0:00:12]} 28. Bxe5 {[%emt 0:00:32]} ({Much less strong is} 28. dxc4 $6 Nc6 29. Rb1 Nd7 $16) 28... Rc8 {[%emt 0:00:42][%cal Oc4d3]} 29. Nxc4 {[%emt 0:00:07]} Nbd7 {[%emt 0:00:09]} 30. Bf4 {[%emt 0:00:34]} h6 {[%emt 0:00:29]} 31. h4 {[%emt 0:00:14]} Rd8 {[%emt 0:00:13]} 32. Rb1 {[%emt 0:00:23]} Kg7 {[%emt 0:01:19]} (32... Nb6 {was called for.} 33. Nxb6 axb6 34. Rxb6 Nh5) 33. Bc7 {[%emt 0:00:26] White is clearly winning.} Rc8 {[%emt 0:00:28]} 34. Rb7 {[%emt 0:00:06]} a6 {[%emt 0:00:17]} 35. Kf1 {[%emt 0:00:12]} g5 {[%emt 0:00:09]} 36. hxg5 {[%emt 0:00:06]} hxg5 {[%emt 0:00:02]} 37. g4 {[%emt 0:00:11]} Re8 {[%emt 0:01:21]} 38. Ra7 {[%emt 0:00:35]} Re6 {[%emt 0:00:18]} 39. Ba5 {[%emt 0:00:26]} Nb8 {[%emt 0:00:24]} 40. Bc3 {[%emt 0:00:17] [#] Black must now prevent Rb7. This bishop pair is nice.} Kg6 {[%emt 0:00:56]} (40... Kg8 $142 41. Bb2 Nfd7) 41. Ne5+ {[%emt 0:00:06] Weighted Error Value: White=0.12 (very precise) /Black=0.31} 1-0

[Event "13th Chennai Open 2022"]
[Site "Chennai"]
[Date "2022.06.22"]
[Round "6.11"]
[White "Ziatdinov, Raset"]
[Black "Gusain, Himal"]
[Result "1/2-1/2"]
[ECO "B08"]
[WhiteElo "2224"]
[BlackElo "2396"]
[Annotator "TA"]
[PlyCount "98"]
[EventDate "2022.06.19"]
[EventType "swiss"]
[EventCountry "IND"]
[SourceTitle "playchess.com"]
[Source "ChessBase"]
[SourceQuality "1"]
[TimeControl "5400+30"]

{[%evp 11,98,38,39,42,33,28,44,27,39,39,59,39,59,39,45,33,58,7,25,35,15,-43,-52,-29,-40,-122,-131,-111,-62,-103,-16,-34,-7,-147,-37,-70,-82,-83,-90,-66,-91,-93,-72,-111,-42,-51,244,242,528,514,481,442,29979,29978,29992,1820,1114,975,29991,0,0,20,14,22,14,0,8,-13,0,-403,0,-401,0,-398,-359,-350,-69,-69,0,0,0,0,0,0,0,0,0,0,0]} 1. e4 {[%emt 0:00:05]} d6 {[%emt 0:06:46]} 2. d4 {[%emt 0:01:55]} Nf6 {[%emt 0:01:02]} 3. Nc3 {[%emt 0:00:07]} g6 {[%emt 0:00:05]} 4. Nf3 {[%emt 0:00:59]} Bg7 {[%emt 0:00:08]} 5. Be2 {[%emt 0:00:04]} O-O {[%emt 0:00:35]} 6. O-O {[%emt 0:00:06]} c6 {[%emt 0:03:08]} 7. Qd2 {[%emt 0:01:54] B08: Pirc Defence: Classical System.} b5 {[%emt 0:02:35] [#]} 8. e5 $146 {[%emt 0:00:59]} ({Predecessor:} 8. a3 a5 9. e5 dxe5 10. Nxe5 Bb7 11. Bf3 Qc7 12. Qf4 Qc8 13. Re1 Nbd7 14. Qh4 Nxe5 15. dxe5 {0-1 (60) Ganzer,M-Henke,S GER email 2007}) 8... dxe5 {[%emt 0:01:07]} 9. Nxe5 {[%emt 0:00:07] White is slightly better.} Qb6 {[%emt 0:02:22]} 10. Bf3 {[%emt 0:03:47]} Rd8 {[%emt 0:01:15]} 11. Rd1 {[%emt 0:01:33]} Nd5 {[%emt 0:02:13]} 12. Nxd5 {[%emt 0:15:19]} cxd5 {[%emt 0:00:20]} 13. a4 {[%emt 0:00:47]} bxa4 {[%emt 0:01:10]} 14. c4 {[%emt 0:05:14]} ({White should play} 14. Rxa4 $14 Nc6 15. Nxc6 Qxc6 16. b3) 14... Bb7 {[%emt 0:02:35]} (14... Bxe5 $5 15. dxe5 Nc6 $11) 15. c5 {[%emt 0:01:25]} Qc7 {[%emt 0:00:22]} 16. Qf4 {[%emt 0:07:02]} (16. Rxa4 $11 a5 17. Ng4) 16... Bxe5 $15 {[%emt 0:04:39]} 17. dxe5 {[%emt 0:00:15]} Nd7 {[%emt 0:01:12]} 18. Qh6 {[%emt 0:05:13]} (18. Rxa4 $15 Nxc5 19. Ra3) 18... Nxc5 {[%emt 0:02:30]} 19. Bf4 {[%emt 0:19:59][%cal Oe5e6]} Qd7 {[%emt 0:09:29]} (19... Ne6 $1 $17 20. Bg4 Nxf4 21. Qxf4 Bc6) 20. Bg5 {[%emt 0:03:01][%cal Og5f6] aiming for Bf6!} Qe6 {[%emt 0:02:50] Prevents Bf6.} (20... d4 $17 {...Bxf3 is the strong threat.} 21. Be2 Qe6) 21. Qh4 $11 {[%emt 0:07:11]} Re8 {[%emt 0:01:19]} (21... Qxe5 22. Bxe7 Rdc8 23. Bf6 $14) 22. Qf4 {[%emt 0:03:25]} (22. Be3 $11 Ne4 23. Bd4) 22... Ne4 {[%emt 0:00:34]} (22... Qb6 $1 $17 {Strongly threatening ...d4.} 23. Qh4 d4 24. Qxd4 Bxf3 25. gxf3 Nb3 26. Qxb6 axb6) 23. Bg4 {[%emt 0:03:49]} Qb6 {[%emt 0:00:15]} 24. Bd7 {[%emt 0:00:37][%cal Bg4d7,Bd7a4,Ba4c2,Bc2g6][%mdl 32]} Red8 {[%emt 0:01:08]} (24... Qxb2 $6 25. Rdb1 Qd4 26. Bxe8 Rxe8 27. Bh6 $11) 25. Bxa4 {[%emt 0:00:31]} Nxg5 {[%emt 0:04:34]} 26. Qxg5 {[%emt 0:00:04]} e6 {[%emt 0:02:42]} 27. Ra3 {[%emt 0:01:14]} Qb4 {[%emt 0:00:47]} (27... Qxb2 $17 28. Raa1 a5) 28. h4 $15 {[%emt 0:02:28]} h5 $2 {[%emt 0:03:38][%mdl 8192]} (28... Qxb2 29. Rf3 Qb4 30. Rxf7 Kxf7 31. Qf6+ Kg8 32. Qxe6+ Kh8 33. Qf6+ Kg8 34. Qe6+ Kh8 35. Qf6+ Kg8 36. Qe6+ $11) (28... Rdc8 $1 $15) 29. Bc2 $1 $18 {[%emt 0:01:24]} Qxb2 $2 {[%emt 0:04:35] [#]} (29... Qg4 {keeps fighting.}) 30. Bxg6 $1 {[%emt 0:01:16][%cal Og5f6][%mdl 512] Intending Qf6! and mate.} Qxa3 {[%emt 0:00:04]} 31. Rd3 $1 {[%emt 0:01:10]} Qa1+ {[%emt 0:06:24]} (31... Qxd3 $18 32. Bxd3+ Kf8 33. Qxh5 Ke7 34. Qg5+ Kd7) 32. Kh2 {[%emt 0:00:07]} Rd7 {[%emt 0:00:03] [#]} 33. Rg3 {[%emt 0:01:37]} Kf8 {[%emt 0:02:42]} 34. Qf6 {[%emt 0:02:07]} Ke8 {[%emt 0:01:39] [#]} 35. Bd3 $2 {[%emt 0:04:02]} (35. Bxf7+ $1 {[%mdl 512] mates} Rxf7 36. Qxe6+ Kf8 37. Qh6+ Rg7 38. Qxg7+ Ke8 39. Qg6+ Kd7 40. Qd6+ Ke8 41. Qe6+ Kd8 42. Rg8+ Kc7 43. Qd6#) 35... Re7 $1 $11 {[%emt 0:03:20]} 36. Bb5+ {[%emt 0:00:28]} Kd8 {[%emt 0:00:05]} 37. Rg8+ {[%emt 0:01:07][%mdl 64] Deflection} Kc7 {[%emt 0:00:04]} 38. Qxe7+ {[%emt 0:00:20]} Kb6 {[%emt 0:00:03]} 39. Rg5 {[%emt 0:00:26] The board is on fire.} Qd4 {[%emt 0:01:36] White must now prevent ...Qc5.} 40. Be2 $2 {[%emt 0:02:46][%mdl 8192]} (40. Bd7 $1 $11 a5 41. Rg7 Qxe5+ 42. g3 Qxg7 43. Qd6+ Ka7 44. Qc5+ Kb8 45. Qd6+ Ka7 46. Qc5+ Kb8 47. Qd6+ Ka7) 40... Qxh4+ $19 {[%emt 0:01:46]} (40... Bc6 41. Rxh5 Qf4+ 42. Kg1 $11) 41. Kg1 {[%emt 0:00:03] [#] Hoping for Qd6+.} Bc6 $2 {[%emt 0:00:28]} (41... a5 $1 $19 42. Bf1 (42. Qd6+ $2 Bc6 $19) 42... Bc6) 42. g3 $2 {[%emt 0:01:35][%mdl 8192]} (42. Qa3 $1 $11 {and White has nothing to worry.} Qxg5 43. Qb4+ Kc7 44. Qd6+ Kb7 45. Qb4+ Kc8 46. Qc5) 42... Qe4 {[%emt 0:00:31]} 43. Bf1 {[%emt 0:00:46]} h4 {[%emt 0:02:27]} ({Black should try} 43... a5 $19 44. Rxh5 (44. Qxf7 $2 d4 $19) 44... d4) 44. Rg7 $1 $15 {[%emt 0:01:21]} a5 {[%emt 0:06:47]} ({Much worse is} 44... hxg3 45. Rxg3 Qa4 46. Qxf7 $11) (44... h3 $1 $15 45. Rxf7 h2+ 46. Kxh2 Rh8+ 47. Bh3 a5 48. Qxe6 Re8) 45. Rxf7 $11 {[%emt 0:00:25] And now Qc7+ would win. The position is equal.} Qxe5 {[%emt 0:00:03]} (45... hxg3 $5 46. Qc7+ Kc5 47. Qd6+ (47. fxg3 $2 Qe3+ 48. Rf2 Qxg3+ 49. Bg2 Qe3 $19) 47... Kd4 48. Qxc6 gxf2+ 49. Rxf2 Rg8+ 50. Bg2 Qe1+ 51. Rf1 Qe3+ 52. Rf2 Qe1+ 53. Rf1 Qe3+ 54. Rf2 Qe1+ $11) 46. Qa3 {[%emt 0:01:02]} hxg3 {[%emt 0:05:26]} 47. Qb3+ {[%emt 0:00:08]} Kc5 {[%emt 0:00:10]} 48. Qa3+ {[%emt 0:00:06]} Kb6 {[%emt 0:00:11] Threatens to win with ...gxf2+.} 49. Qb3+ {[%emt 0:00:05]} Kc5 {[%emt 0:00:05] Quite a comeback for White.  Weighted Error Value: White=0.54/Black=0.90} 1/2-1/2